[Event "*** Titled Tuesday Blitz"]
[Site "Chess.com"]
[Date "2019.07.02"]
[Round "8"]
[White "Bad4life"]
[Black "Galileo22"]
[Result "0-1"]
[WhiteElo "2352"]
[BlackElo "2394"]
[TimeControl "180+2"]
[EndTime "14:50:28 PDT"]
[Termination "Galileo22 won by resignation"]

1. Nf3 {[%clk 0:03:01.9]} 1... Nf6 {[%clk 0:03:00.6]} 2. b3 {[%clk 0:03:01.9]}
2... g6 {[%clk 0:03:00.4]} 3. Bb2 {[%clk 0:03:03.1]} 3... Bg7 {[%clk 0:03:02.3]}
4. g4 {[%clk 0:03:04.6]} 4... d6 {[%clk 0:02:48.2]} 5. g5 {[%clk 0:03:05.5]}
5... Nh5 {[%clk 0:02:49.2]} 6. Bxg7 {[%clk 0:03:06.5]} 6... Nxg7 {[%clk
0:02:51.1]} 7. h4 {[%clk 0:03:06.8]} 7... e5 {[%clk 0:02:48.3]} 8. c4 {[%clk
0:03:05.9]} 8... Nc6 {[%clk 0:02:44.6]} 9. Nc3 {[%clk 0:02:58.4]} 9... Bg4
{[%clk 0:02:15.8]} 10. Nh2 {[%clk 0:02:46.5]} 10... Be6 {[%clk 0:02:13.8]} 11.
Ne4 {[%clk 0:02:46.8]} 11... O-O {[%clk 0:02:01.7]} 12. Nf6+ {[%clk 0:02:46]}
12... Kh8 {[%clk 0:02:02.3]} 13. e3 {[%clk 0:02:33.8]} 13... Ne8 {[%clk
0:01:46.5]} 14. Nhg4 {[%clk 0:02:27.7]} 14... Bxg4 {[%clk 0:01:42.6]} 15. Nxg4
{[%clk 0:02:28.9]} 15... h5 {[%clk 0:01:22.2]} 16. Nh6 {[%clk 0:02:15.5]} 16...
f6 {[%clk 0:01:06.5]} 17. Bd3 {[%clk 0:02:09.8]} 17... Kg7 {[%clk 0:00:56.2]}
18. Rg1 {[%clk 0:02:01.1]} 18... f5 {[%clk 0:00:49.8]} 19. f4 {[%clk 0:01:45.7]}
19... exf4 {[%clk 0:00:45.3]} 20. exf4 {[%clk 0:01:20.7]} 20... d5 {[%clk
0:00:41.6]} 21. Qc2 {[%clk 0:01:06.4]} 21... dxc4 {[%clk 0:00:36.4]} 22. Bxc4
{[%clk 0:01:05.1]} 22... Qe7+ {[%clk 0:00:28.7]} 23. Kf1 {[%clk 0:00:58.6]}
23... Rd8 {[%clk 0:00:23.4]} 24. Qc3+ {[%clk 0:00:55.2]} 24... Kh7 {[%clk
0:00:20.7]} 25. Re1 {[%clk 0:00:56.4]} 25... Qd6 {[%clk 0:00:20.4]} 26. Qf3
{[%clk 0:00:32.5]} 26... Nd4 {[%clk 0:00:15.6]} 27. Qe3 {[%clk 0:00:32.3]} 27...
Rd7 {[%clk 0:00:12.7]} 28. Kg2 {[%clk 0:00:16]} 28... Ng7 {[%clk 0:00:12.2]} 29.
Kg3 {[%clk 0:00:13.9]} 29... Nc2 {[%clk 0:00:12.1]} 30. Qc3 {[%clk 0:00:08.9]}
30... Nxe1 {[%clk 0:00:12.3]} 31. Rxe1 {[%clk 0:00:10.1]} 31... c6 {[%clk
0:00:13.3]} 32. d3 {[%clk 0:00:09.4]} 32... b5 {[%clk 0:00:12.5]} 33. Bg8+
{[%clk 0:00:07.2]} 33... Rxg8 {[%clk 0:00:12]} 34. Nxg8 {[%clk 0:00:08.3]} 34...
Kxg8 {[%clk 0:00:13.9]} 35. Re3 {[%clk 0:00:08.7]} 35... Kh7 {[%clk 0:00:13.9]}
36. b4 {[%clk 0:00:07.7]} 36... a6 {[%clk 0:00:14.6]} 37. a3 {[%clk 0:00:07.8]}
37... Qd4 {[%clk 0:00:13.4]} 38. Qe1 {[%clk 0:00:08.8]} 38... Rf7 {[%clk
0:00:11.7]} 39. Qe2 {[%clk 0:00:09.5]} 39... Rd7 {[%clk 0:00:11.7]} 40. Qe1
{[%clk 0:00:09.5]} 40... Kg8 {[%clk 0:00:12.8]} 41. Qe2 {[%clk 0:00:10.3]} 41...
Kf7 {[%clk 0:00:13]} 42. Qa2+ {[%clk 0:00:11.4]} 42... Qd5 {[%clk 0:00:13.6]}
43. Qb2 {[%clk 0:00:12.5]} 43... Qd6 {[%clk 0:00:13.6]} 44. Qc3 {[%clk
0:00:11.9]} 44... Re7 {[%clk 0:00:14.3]} 45. Rf3 {[%clk 0:00:11.9]} 45... Ne8
{[%clk 0:00:13.8]} 46. Qh8 {[%clk 0:00:13]} 46... Ke6 {[%clk 0:00:12.3]} 47.
Qg8+ {[%clk 0:00:12.9]} 47... Kd7 {[%clk 0:00:13.1]} 48. Qb3 {[%clk 0:00:10.6]}
48... Nc7 {[%clk 0:00:13.8]} 49. a4 {[%clk 0:00:12]} 49... Nd5 {[%clk
0:00:12.9]} 50. axb5 {[%clk 0:00:13.3]} 50... axb5 {[%clk 0:00:14.8]} 51. Qa3
{[%clk 0:00:14.2]} 51... Ke8 {[%clk 0:00:14.2]} 52. Qa1 {[%clk 0:00:11.7]} 52...
Kf7 {[%clk 0:00:13.4]} 53. Qh8 {[%clk 0:00:12]} 53... Ke6 {[%clk 0:00:13]} 54.
Rf2 {[%clk 0:00:11.1]} 54... Kd7 {[%clk 0:00:13.5]} 55. Qa8 {[%clk 0:00:10.6]}
55... Nc7 {[%clk 0:00:13.5]} 56. Qg8 {[%clk 0:00:09.9]} 56... Qxd3+ {[%clk
0:00:13.7]} 57. Kg2 {[%clk 0:00:10.4]} 57... Qd5+ {[%clk 0:00:14.3]} 58. Qxd5+
{[%clk 0:00:11.2]} 58... Nxd5 {[%clk 0:00:16.2]} 0-1

[Event "*** Titled Tuesday Blitz"]
[Site "Chess.com"]
[Date "2019.07.02"]
[Round "8"]
[White "TonRicher"]
[Black "monalize"]
[Result "0-1"]
[WhiteElo "2393"]
[BlackElo "2332"]
[TimeControl "180+2"]
[EndTime "14:51:12 PDT"]
[Termination "monalize won by resignation"]

1. d4 {[%clk 0:03:01.9]} 1... Nf6 {[%clk 0:02:57.9]} 2. c4 {[%clk 0:03:03.1]}
2... d6 {[%clk 0:02:58.9]} 3. Nc3 {[%clk 0:03:03.5]} 3... e5 {[%clk 0:02:59.5]}
4. Nf3 {[%clk 0:02:59.9]} 4... e4 {[%clk 0:02:58.8]} 5. Ng5 {[%clk 0:03:00.5]}
5... Bf5 {[%clk 0:02:57.7]} 6. f3 {[%clk 0:02:47.8]} 6... exf3 {[%clk
0:02:56.5]} 7. exf3 {[%clk 0:02:27.4]} 7... Be7 {[%clk 0:02:55.9]} 8. Bd3 {[%clk
0:02:25.2]} 8... Bxd3 {[%clk 0:02:51]} 9. Qxd3 {[%clk 0:02:25.5]} 9... O-O
{[%clk 0:02:51.6]} 10. O-O {[%clk 0:02:25.1]} 10... Nbd7 {[%clk 0:02:41.6]} 11.
Nge4 {[%clk 0:02:22.2]} 11... Re8 {[%clk 0:02:37.4]} 12. Ng3 {[%clk 0:02:16.5]}
12... c6 {[%clk 0:02:30.5]} 13. Bf4 {[%clk 0:02:12.4]} 13... Bf8 {[%clk
0:02:28.1]} 14. Rfe1 {[%clk 0:02:08.9]} 14... Qa5 {[%clk 0:02:24.6]} 15. a3
{[%clk 0:01:54.2]} 15... Qa6 {[%clk 0:02:22.4]} 16. Qf1 {[%clk 0:01:47.1]} 16...
d5 {[%clk 0:02:03.4]} 17. c5 {[%clk 0:01:43.1]} 17... Qxf1+ {[%clk 0:02:02.7]}
18. Kxf1 {[%clk 0:01:45]} 18... b6 {[%clk 0:01:41.2]} 19. b4 {[%clk 0:01:45]}
19... a5 {[%clk 0:01:33.6]} 20. Bc7 {[%clk 0:01:26.1]} 20... axb4 {[%clk
0:01:29.2]} 21. axb4 {[%clk 0:01:27]} 21... b5 {[%clk 0:01:22.8]} 22. Rxe8
{[%clk 0:00:52.4]} 22... Rxa1+ {[%clk 0:01:19.8]} 23. Re1 {[%clk 0:00:53.3]}
23... Rxe1+ {[%clk 0:01:19.6]} 24. Kxe1 {[%clk 0:00:53.8]} 24... g6 {[%clk
0:01:20.3]} 25. Ke2 {[%clk 0:00:46.1]} 25... Bg7 {[%clk 0:01:18.4]} 26. Kd3
{[%clk 0:00:45.2]} 26... Ne8 {[%clk 0:01:18.1]} 27. Bf4 {[%clk 0:00:45.2]} 27...
Nf8 {[%clk 0:01:18.2]} 28. Nge2 {[%clk 0:00:43.7]} 28... Ne6 {[%clk 0:01:18.4]}
29. Be3 {[%clk 0:00:45.2]} 29... N8c7 {[%clk 0:01:14.6]} 30. Nc1 {[%clk
0:00:42]} 30... Na6 {[%clk 0:01:13.7]} 31. N3a2 {[%clk 0:00:39.4]} 31... f5
{[%clk 0:01:13.1]} 32. Nb3 {[%clk 0:00:40.1]} 32... Kf7 {[%clk 0:01:13.8]} 33.
Na5 {[%clk 0:00:40.8]} 33... Nb8 {[%clk 0:01:10.4]} 34. g4 {[%clk 0:00:37.6]}
34... Ke7 {[%clk 0:01:10.7]} 35. h3 {[%clk 0:00:38.2]} 35... Kd7 {[%clk
0:01:11.4]} 36. Nc3 {[%clk 0:00:38.3]} 36... Na6 {[%clk 0:01:10.5]} 37. Na2
{[%clk 0:00:39.3]} 37... Nac7 {[%clk 0:01:09.6]} 38. Nb7 {[%clk 0:00:37.9]}
38... Bf6 {[%clk 0:01:06.7]} 39. Nd6 {[%clk 0:00:35.9]} 39... fxg4 {[%clk
0:01:04.2]} 40. hxg4 {[%clk 0:00:34.1]} 40... Be7 {[%clk 0:01:04.3]} 41. Nf7
{[%clk 0:00:33]} 41... Bf6 {[%clk 0:01:01]} 42. f4 {[%clk 0:00:30.9]} 42... Nd8
{[%clk 0:00:56.7]} 43. Ne5+ {[%clk 0:00:23]} 43... Ke6 {[%clk 0:00:56.3]} 44.
Nc3 {[%clk 0:00:17.8]} 44... Na6 {[%clk 0:00:55.4]} 45. Na2 {[%clk 0:00:18.8]}
45... g5 {[%clk 0:00:47.5]} 46. Nf3 {[%clk 0:00:17.1]} 46... gxf4 {[%clk
0:00:47.9]} 47. Bxf4 {[%clk 0:00:19]} 47... Kf7 {[%clk 0:00:46.2]} 48. Ke3
{[%clk 0:00:19.4]} 48... Ne6 {[%clk 0:00:45.9]} 49. Be5 {[%clk 0:00:19.7]} 49...
Be7 {[%clk 0:00:46.3]} 50. Bg3 {[%clk 0:00:19.9]} 50... Bf6 {[%clk 0:00:43.8]}
51. Be5 {[%clk 0:00:20.8]} 51... Be7 {[%clk 0:00:43.7]} 52. Bh2 {[%clk
0:00:21.3]} 52... Bf6 {[%clk 0:00:44.8]} 53. Kd3 {[%clk 0:00:21.6]} 53... Kg6
{[%clk 0:00:44.1]} 54. Be5 {[%clk 0:00:19.4]} 54... Be7 {[%clk 0:00:43.9]} 55.
Bh8 {[%clk 0:00:20.5]} 55... Nd8 {[%clk 0:00:39.6]} 56. Ne5+ {[%clk 0:00:20.4]}
56... Kg5 {[%clk 0:00:40.3]} 57. Ke3 {[%clk 0:00:19.5]} 57... Nb8 {[%clk
0:00:28.5]} 58. Nc3 {[%clk 0:00:20.2]} 58... Ne6 {[%clk 0:00:27.9]} 59. Bg7
{[%clk 0:00:18.5]} 59... Nxg7 {[%clk 0:00:27.8]} 60. Nxc6 {[%clk 0:00:16]} 60...
Nxc6 {[%clk 0:00:27.6]} 61. Nxd5 {[%clk 0:00:17.6]} 61... Ne6 {[%clk 0:00:23.6]}
62. Ke4 {[%clk 0:00:15.6]} 62... Bd8 {[%clk 0:00:22.3]} 63. Nc3 {[%clk
0:00:12.4]} 63... Nexd4 {[%clk 0:00:21.8]} 64. Kd5 {[%clk 0:00:12.5]} 64... Kxg4
{[%clk 0:00:21.2]} 65. Ne4 {[%clk 0:00:13.4]} 65... h5 {[%clk 0:00:21]} 66. Kd6
{[%clk 0:00:12.5]} 66... h4 {[%clk 0:00:21.3]} 67. Kd7 {[%clk 0:00:11.9]} 67...
Bg5 {[%clk 0:00:22]} 68. Nc3 {[%clk 0:00:09.2]} 68... h3 {[%clk 0:00:22.8]} 69.
Nxb5 {[%clk 0:00:10.4]} 69... h2 {[%clk 0:00:23]} 70. Nxd4 {[%clk 0:00:10.8]}
70... Nxd4 {[%clk 0:00:24.2]} 71. b5 {[%clk 0:00:12.4]} 71... Nxb5 {[%clk
0:00:23.9]} 72. c6 {[%clk 0:00:14.3]} 72... h1=Q {[%clk 0:00:23.2]} 0-1

[Event "*** Titled Tuesday Blitz"]
[Site "Chess.com"]
[Date "2019.07.02"]
[Round "8"]
[White "JustaTrickstar"]
[Black "Grischuk"]
[Result "1-0"]
[WhiteElo "2871"]
[BlackElo "3065"]
[TimeControl "180+2"]
[EndTime "14:52:52 PDT"]
[Termination "JustaTrickstar won by resignation"]

1. c4 {[%clk 0:03:01.9]} 1... g6 {[%clk 0:03:00.4]} 2. d4 {[%clk 0:03:02.4]}
2... Bg7 {[%clk 0:03:01.7]} 3. e4 {[%clk 0:03:03.9]} 3... d6 {[%clk 0:03:02.9]}
4. Nc3 {[%clk 0:03:04.9]} 4... Nf6 {[%clk 0:03:04.2]} 5. Be2 {[%clk 0:03:05.1]}
5... O-O {[%clk 0:03:04.7]} 6. Be3 {[%clk 0:03:06.2]} 6... Na6 {[%clk 0:03:01]}
7. Nf3 {[%clk 0:03:00.2]} 7... e5 {[%clk 0:03:01.8]} 8. O-O {[%clk 0:02:53]}
8... c6 {[%clk 0:03:01.2]} 9. Qc2 {[%clk 0:02:45.3]} 9... Ng4 {[%clk 0:02:40]}
10. Bg5 {[%clk 0:02:45.8]} 10... Qc7 {[%clk 0:02:29.6]} 11. Rad1 {[%clk
0:02:43.3]} 11... d5 {[%clk 0:01:34.1]} 12. dxe5 {[%clk 0:02:13.2]} 12... dxe4
{[%clk 0:01:34]} 13. Nxe4 {[%clk 0:02:10]} 13... Bf5 {[%clk 0:01:35.5]} 14. Bf4
{[%clk 0:01:54.6]} 14... Nc5 {[%clk 0:01:32.8]} 15. Bd3 {[%clk 0:01:47]} 15...
Nxd3 {[%clk 0:01:28.2]} 16. Qxd3 {[%clk 0:01:48.9]} 16... Nxe5 {[%clk
0:01:26.6]} 17. Qe2 {[%clk 0:01:36.8]} 17... Bg4 {[%clk 0:01:15]} 18. Nd6 {[%clk
0:01:33.6]} 18... Nxf3+ {[%clk 0:01:13]} 19. gxf3 {[%clk 0:01:34.3]} 19... Bh3
{[%clk 0:01:08.4]} 20. Rfe1 {[%clk 0:01:34.4]} 20... Qb6 {[%clk 0:01:07.3]} 21.
b3 {[%clk 0:01:31.6]} 21... Rad8 {[%clk 0:00:54.5]} 22. Qe7 {[%clk 0:01:15.7]}
22... Rd7 {[%clk 0:00:53.5]} 23. Qh4 {[%clk 0:01:05.9]} 23... Be6 {[%clk
0:00:54.5]} 24. Ne4 {[%clk 0:01:05]} 24... Qd8 {[%clk 0:00:48.8]} 25. Qxd8
{[%clk 0:00:56.5]} 25... Rdxd8 {[%clk 0:00:44.5]} 26. Rxd8 {[%clk 0:00:53.3]}
26... Rxd8 {[%clk 0:00:46.4]} 27. Bg5 {[%clk 0:00:45.5]} 27... Rb8 {[%clk
0:00:25.2]} 28. Nc5 {[%clk 0:00:41.4]} 28... Bh3 {[%clk 0:00:20.4]} 29. Bf4
{[%clk 0:00:29.9]} 29... Rd8 {[%clk 0:00:18.4]} 30. Nxb7 {[%clk 0:00:31.2]}
30... Rd4 {[%clk 0:00:19.8]} 31. Be3 {[%clk 0:00:28.5]} 31... Rd7 {[%clk
0:00:20.3]} 32. Nc5 {[%clk 0:00:29.3]} 32... Rd8 {[%clk 0:00:18.5]} 33. Nb7
{[%clk 0:00:28.4]} 33... Rd7 {[%clk 0:00:17.9]} 34. Nc5 {[%clk 0:00:29.4]} 34...
Rd8 {[%clk 0:00:19.3]} 35. Nb7 {[%clk 0:00:25.9]} 35... Rb8 {[%clk 0:00:14.3]}
36. Bf4 {[%clk 0:00:24]} 36... Ra8 {[%clk 0:00:10.7]} 37. Nd6 {[%clk 0:00:20.4]}
37... Kf8 {[%clk 0:00:05.5]} 38. c5 {[%clk 0:00:18.3]} 38... h6 {[%clk
0:00:05.2]} 39. Be5 {[%clk 0:00:16.8]} 39... a5 {[%clk 0:00:04.8]} 40. Bxg7+
{[%clk 0:00:17.6]} 40... Kxg7 {[%clk 0:00:06.7]} 41. Re7 {[%clk 0:00:16.8]}
41... Kf6 {[%clk 0:00:04.9]} 42. Rxf7+ {[%clk 0:00:16.8]} 42... Ke6 {[%clk
0:00:06.5]} 43. Rf4 {[%clk 0:00:16]} 43... g5 {[%clk 0:00:06]} 44. Rd4 {[%clk
0:00:16.1]} 44... Ke5 {[%clk 0:00:05.1]} 45. Rd2 {[%clk 0:00:14.5]} 45... a4
{[%clk 0:00:05.2]} 46. b4 {[%clk 0:00:14.8]} 46... a3 {[%clk 0:00:05.9]} 47.
Nf7+ {[%clk 0:00:12.1]} 47... Kf6 {[%clk 0:00:04.3]} 48. Nd8 {[%clk 0:00:13.2]}
48... Rc8 {[%clk 0:00:04.5]} 49. Rd6+ {[%clk 0:00:13.2]} 49... Kf5 {[%clk
0:00:04.3]} 50. Nxc6 {[%clk 0:00:12.6]} 50... Re8 {[%clk 0:00:05.5]} 51. Rd1
{[%clk 0:00:12.7]} 51... Kf4 {[%clk 0:00:05.4]} 52. Nd4 {[%clk 0:00:13.6]} 52...
Rc8 {[%clk 0:00:03.6]} 53. c6 {[%clk 0:00:14.7]} 53... g4 {[%clk 0:00:03.4]} 54.
fxg4 {[%clk 0:00:15.2]} 54... Bxg4 {[%clk 0:00:04.6]} 55. f3 {[%clk 0:00:16.7]}
55... Bh3 {[%clk 0:00:06.1]} 56. Kf2 {[%clk 0:00:14.9]} 56... Rg8 {[%clk
0:00:07.3]} 57. Rg1 {[%clk 0:00:14.9]} 57... Rd8 {[%clk 0:00:08.9]} 58. Ne2+
{[%clk 0:00:14.4]} 58... Ke5 {[%clk 0:00:10.6]} 59. b5 {[%clk 0:00:15.1]} 59...
Rd2 {[%clk 0:00:11.1]} 60. b6 {[%clk 0:00:15.7]} 60... Rxa2 {[%clk 0:00:10.1]}
61. b7 {[%clk 0:00:14.5]} 61... Rb2 {[%clk 0:00:11.1]} 62. Ra1 {[%clk
0:00:13.4]} 62... Kd6 {[%clk 0:00:11.8]} 63. Kg3 {[%clk 0:00:07.7]} 63... Be6
{[%clk 0:00:04.2]} 64. Nd4 {[%clk 0:00:08.3]} 64... Bd5 {[%clk 0:00:04.9]} 65.
Rxa3 {[%clk 0:00:09.3]} 65... Kc5 {[%clk 0:00:05.8]} 66. Ra4 {[%clk 0:00:05.1]}
66... Bxc6 {[%clk 0:00:04.9]} 67. Nxc6 {[%clk 0:00:06.1]} 67... Kxc6 {[%clk
0:00:06.8]} 68. Ra6+ {[%clk 0:00:07.5]} 68... Kxb7 {[%clk 0:00:08]} 69. Rxh6
{[%clk 0:00:09]} 69... Kc7 {[%clk 0:00:09.4]} 70. Re6 {[%clk 0:00:10.5]} 70...
Kd7 {[%clk 0:00:10.9]} 71. Re4 {[%clk 0:00:11.8]} 71... Rb1 {[%clk 0:00:11.1]}
72. h4 {[%clk 0:00:13.1]} 72... Rg1+ {[%clk 0:00:11.2]} 73. Kf4 {[%clk
0:00:14.4]} 73... Rh1 {[%clk 0:00:12.4]} 74. Kg5 {[%clk 0:00:15.5]} 74... Rg1+
{[%clk 0:00:13.7]} 75. Kh6 {[%clk 0:00:16.6]} 75... Rf1 {[%clk 0:00:10.4]} 76.
Re3 {[%clk 0:00:17.5]} 76... Kd6 {[%clk 0:00:09.6]} 77. h5 {[%clk 0:00:17.8]}
77... Kd5 {[%clk 0:00:11]} 78. Kh7 {[%clk 0:00:14.9]} 78... Kd4 {[%clk
0:00:11.1]} 79. Re4+ {[%clk 0:00:13.7]} 79... Kd5 {[%clk 0:00:12.3]} 80. Re3
{[%clk 0:00:14.4]} 80... Kd4 {[%clk 0:00:13.5]} 81. Re7 {[%clk 0:00:05.6]} 81...
Rxf3 {[%clk 0:00:13.7]} 82. h6 {[%clk 0:00:06.8]} 82... Rg3 {[%clk 0:00:09.5]}
83. Rg7 {[%clk 0:00:07.5]} 83... Rh3 {[%clk 0:00:10]} 84. Rg5 {[%clk 0:00:08]}
84... Ra3 {[%clk 0:00:07.7]} 85. Kg6 {[%clk 0:00:07.7]} 85... Ra6+ {[%clk
0:00:06.2]} 86. Kh5 {[%clk 0:00:09.1]} 86... Ra7 {[%clk 0:00:06.1]} 87. Rg7
{[%clk 0:00:09.5]} 87... Ra5+ {[%clk 0:00:06.1]} 88. Kh4 {[%clk 0:00:10.9]}
88... Ke5 {[%clk 0:00:03.7]} 89. Rg5+ {[%clk 0:00:11.5]} 89... Kf6 {[%clk
0:00:04]} 90. Rxa5 {[%clk 0:00:13.4]} 1-0

[Event "*** Titled Tuesday Blitz"]
[Site "Chess.com"]
[Date "2019.07.02"]
[Round "8"]
[White "Spring199"]
[Black "Caisachess"]
[Result "0-1"]
[WhiteElo "2182"]
[BlackElo "2389"]
[TimeControl "180+2"]
[EndTime "14:52:52 PDT"]
[Termination "Caisachess won by resignation"]

1. d4 {[%clk 0:03:00.9]} 1... Nf6 {[%clk 0:03:00.5]} 2. c4 {[%clk 0:03:02.8]}
2... e6 {[%clk 0:03:01.4]} 3. Nc3 {[%clk 0:03:02.7]} 3... Bb4 {[%clk 0:03:02.8]}
4. e3 {[%clk 0:03:02.4]} 4... O-O {[%clk 0:03:02.9]} 5. Ne2 {[%clk 0:03:02.9]}
5... d5 {[%clk 0:03:03.9]} 6. a3 {[%clk 0:03:03.9]} 6... Be7 {[%clk 0:03:04.3]}
7. cxd5 {[%clk 0:03:03.8]} 7... exd5 {[%clk 0:03:05.3]} 8. Nf4 {[%clk
0:03:05.7]} 8... Re8 {[%clk 0:03:01.9]} 9. Bd3 {[%clk 0:03:06.8]} 9... Bd6
{[%clk 0:03:02.8]} 10. O-O {[%clk 0:03:06.6]} 10... c6 {[%clk 0:03:02.3]} 11. f3
{[%clk 0:03:02.1]} 11... Nbd7 {[%clk 0:03:03]} 12. e4 {[%clk 0:03:01.1]} 12...
Qb6 {[%clk 0:02:40.6]} 13. Bc2 {[%clk 0:02:57.9]} 13... dxe4 {[%clk 0:02:31]}
14. fxe4 {[%clk 0:02:58.2]} 14... Be5 {[%clk 0:02:18.5]} 15. Nfe2 {[%clk
0:02:56.8]} 15... Bb8 {[%clk 0:01:48]} 16. Kh1 {[%clk 0:02:47.5]} 16... Nf8
{[%clk 0:01:48.8]} 17. Na4 {[%clk 0:02:38.9]} 17... Qc7 {[%clk 0:01:38.8]} 18.
Bf4 {[%clk 0:02:38.1]} 18... Qe7 {[%clk 0:01:39.2]} 19. Bxb8 {[%clk 0:02:37.6]}
19... Rxb8 {[%clk 0:01:41.1]} 20. e5 {[%clk 0:02:36.1]} 20... Ng4 {[%clk
0:01:38.2]} 21. Qd3 {[%clk 0:02:35.1]} 21... Qh4 {[%clk 0:01:37.7]} 22. Qg3
{[%clk 0:02:13.9]} 22... Qxg3 {[%clk 0:01:33.4]} 23. Nxg3 {[%clk 0:02:15.8]}
23... Ne3 {[%clk 0:01:35]} 24. Rf2 {[%clk 0:02:16.8]} 24... Nxc2 {[%clk
0:01:35.9]} 25. Rxc2 {[%clk 0:02:17.6]} 25... Ne6 {[%clk 0:01:36.7]} 26. Rd1
{[%clk 0:02:14.5]} 26... Rd8 {[%clk 0:01:37.2]} 27. Rcd2 {[%clk 0:02:13.3]}
27... g6 {[%clk 0:01:27.3]} 28. Nc3 {[%clk 0:02:11.3]} 28... Nf4 {[%clk
0:01:25.7]} 29. Nge4 {[%clk 0:02:08.3]} 29... Be6 {[%clk 0:01:21.6]} 30. Nf6+
{[%clk 0:02:06.6]} 30... Kg7 {[%clk 0:01:22.2]} 31. g3 {[%clk 0:02:05.4]} 31...
Nd5 {[%clk 0:01:19]} 32. Ncxd5 {[%clk 0:02:05.5]} 32... Bxd5+ {[%clk 0:01:19.9]}
33. Kg1 {[%clk 0:02:06.5]} 33... Be6 {[%clk 0:01:15.2]} 34. Kf2 {[%clk
0:02:06.8]} 34... Rbc8 {[%clk 0:01:15.7]} 35. Ke3 {[%clk 0:02:06.7]} 35... h6
{[%clk 0:01:08.2]} 36. b4 {[%clk 0:02:06.6]} 36... g5 {[%clk 0:01:08.8]} 37. Rf1
{[%clk 0:02:02]} 37... Kg6 {[%clk 0:01:09.1]} 38. Rdf2 {[%clk 0:02:01.8]} 38...
a5 {[%clk 0:01:03.5]} 39. Ne4 {[%clk 0:02:01.8]} 39... axb4 {[%clk 0:01:03.5]}
40. axb4 {[%clk 0:02:02.2]} 40... Ra8 {[%clk 0:01:04.2]} 41. Rf6+ {[%clk
0:01:57.9]} 41... Kg7 {[%clk 0:01:05.2]} 42. Nc5 {[%clk 0:01:58.8]} 42... Ra3+
{[%clk 0:01:00.1]} 43. Kd2 {[%clk 0:01:58.6]} 43... Rxd4+ {[%clk 0:00:57.6]} 44.
Kc2 {[%clk 0:01:55.5]} 44... Ra2+ {[%clk 0:00:55.8]} 45. Kc3 {[%clk 0:01:54.1]}
45... Rc4+ {[%clk 0:00:52.6]} 46. Kd3 {[%clk 0:01:53.6]} 46... Bd5 {[%clk
0:00:43.6]} 47. e6 {[%clk 0:01:51.5]} 47... Ra3+ {[%clk 0:00:42.2]} 48. Kd2
{[%clk 0:01:49.3]} 48... Bxe6 {[%clk 0:00:33.7]} 49. Nxe6+ {[%clk 0:01:49]}
49... fxe6 {[%clk 0:00:34.8]} 50. Rf7+ {[%clk 0:01:49.8]} 50... Kg6 {[%clk
0:00:34.4]} 51. Rxb7 {[%clk 0:01:49.7]} 51... Ra2+ {[%clk 0:00:31.1]} 52. Kd3
{[%clk 0:01:49.7]} 52... Rcc2 {[%clk 0:00:32.3]} 53. g4 {[%clk 0:01:43.8]} 53...
Rd2+ {[%clk 0:00:25.5]} 54. Ke4 {[%clk 0:01:42.3]} 54... Re2+ {[%clk 0:00:25.5]}
55. Kd4 {[%clk 0:01:42.5]} 55... Rad2+ {[%clk 0:00:26.2]} 56. Kc5 {[%clk
0:01:43]} 56... Re4 {[%clk 0:00:25.9]} 57. h3 {[%clk 0:01:39.7]} 57... Rf4
{[%clk 0:00:25.1]} 58. Re1 {[%clk 0:01:38.1]} 58... Rc2+ {[%clk 0:00:21.9]} 59.
Kd6 {[%clk 0:01:36.3]} 59... Rf6 {[%clk 0:00:22.6]} 60. Re7 {[%clk 0:01:22.6]}
60... Rc4 {[%clk 0:00:21.3]} 61. R7xe6 {[%clk 0:01:22.5]} 61... Rxb4 {[%clk
0:00:22.7]} 62. Rxf6+ {[%clk 0:01:22.2]} 62... Kxf6 {[%clk 0:00:24.6]} 63. Kxc6
{[%clk 0:01:22.5]} 63... Rb3 {[%clk 0:00:24.9]} 64. Rh1 {[%clk 0:01:17.9]} 64...
Ke5 {[%clk 0:00:26.3]} 65. h4 {[%clk 0:01:18.9]} 65... Kf4 {[%clk 0:00:27.7]}
66. hxg5 {[%clk 0:01:19.4]} 66... hxg5 {[%clk 0:00:29.6]} 67. Kd5 {[%clk
0:01:18.1]} 67... Re3 {[%clk 0:00:27.6]} 68. Kd4 {[%clk 0:01:17.6]} 68... Rg3
{[%clk 0:00:27.8]} 69. Rf1+ {[%clk 0:01:16.1]} 69... Kxg4 {[%clk 0:00:29]} 70.
Ke4 {[%clk 0:01:17.4]} 70... Rg2 {[%clk 0:00:29.9]} 71. Ke3 {[%clk 0:01:14]}
71... Kg3 {[%clk 0:00:30.7]} 72. Rf8 {[%clk 0:01:09.3]} 72... g4 {[%clk
0:00:30.6]} 73. Rh8 {[%clk 0:01:08.6]} 73... Ra2 {[%clk 0:00:29.6]} 74. Rg8
{[%clk 0:01:08.7]} 74... Ra3+ {[%clk 0:00:30.8]} 75. Ke2 {[%clk 0:01:09.2]}
75... Rb3 {[%clk 0:00:30.4]} 76. Kf1 {[%clk 0:01:09.4]} 76... Rb2 {[%clk
0:00:28.8]} 77. Rh8 {[%clk 0:01:07.9]} 77... Rb1+ {[%clk 0:00:29.1]} 78. Ke2
{[%clk 0:01:08.2]} 78... Kg2 {[%clk 0:00:30.6]} 79. Rg8 {[%clk 0:00:57.2]} 79...
g3 {[%clk 0:00:31.6]} 80. Rc8 {[%clk 0:00:54.6]} 80... Rf1 {[%clk 0:00:28.5]}
81. Rh8 {[%clk 0:00:51.7]} 81... Rf4 {[%clk 0:00:29.3]} 82. Rh7 {[%clk
0:00:50.3]} 82... Re4+ {[%clk 0:00:29.7]} 83. Kd3 {[%clk 0:00:50.7]} 83... Re6
{[%clk 0:00:30.5]} 84. Rh8 {[%clk 0:00:48.7]} 84... Kg1 {[%clk 0:00:29.1]} 85.
Rh3 {[%clk 0:00:38.2]} 85... g2 {[%clk 0:00:29.9]} 86. Rh8 {[%clk 0:00:39.8]}
86... Re5 {[%clk 0:00:24.8]} 87. Kd2 {[%clk 0:00:39.6]} 87... Kf2 {[%clk
0:00:20.2]} 88. Rf8+ {[%clk 0:00:38.6]} 88... Kg3 {[%clk 0:00:21.3]} 89. Rg8+
{[%clk 0:00:39]} 89... Kf3 {[%clk 0:00:22.7]} 90. Rf8+ {[%clk 0:00:38.4]} 90...
Kg4 {[%clk 0:00:23.9]} 91. Rg8+ {[%clk 0:00:32.8]} 91... Rg5 {[%clk 0:00:24.8]}
0-1

[Event "*** Titled Tuesday Blitz"]
[Site "Chess.com"]
[Date "2019.07.02"]
[Round "9"]
[White "chessking2151"]
[Black "Micki-taryan"]
[Result "0-1"]
[WhiteElo "2623"]
[BlackElo "2955"]
[TimeControl "180+2"]
[EndTime "14:53:49 PDT"]
[Termination "Micki-taryan won by resignation"]

1. e4 {[%clk 0:03:01.9]} 1... c5 {[%clk 0:02:59.7]} 2. Nf3 {[%clk 0:03:01.5]}
2... Nc6 {[%clk 0:03:00.7]} 3. d4 {[%clk 0:03:01.9]} 3... cxd4 {[%clk
0:03:02.6]} 4. Nxd4 {[%clk 0:03:03.3]} 4... e5 {[%clk 0:03:04.5]} 5. Nb5 {[%clk
0:03:03.2]} 5... d6 {[%clk 0:03:05.7]} 6. c4 {[%clk 0:03:04.3]} 6... Be7 {[%clk
0:03:04.7]} 7. N1c3 {[%clk 0:03:02.7]} 7... a6 {[%clk 0:03:05.7]} 8. Na3 {[%clk
0:03:04.3]} 8... f5 {[%clk 0:03:06.9]} 9. exf5 {[%clk 0:03:06.1]} 9... Bxf5
{[%clk 0:03:08.3]} 10. Bd3 {[%clk 0:03:07.7]} 10... Be6 {[%clk 0:03:07.4]} 11.
Nc2 {[%clk 0:03:05.9]} 11... Nf6 {[%clk 0:03:08.3]} 0-1